bitfinex/quotes_SOLUSD_20240718
["timestamp","ask_amount","ask_price","bid_price","bid_amount"]
[1721286226921,6.6664,159.73,159.67,1.25236645]
[1721286227116,8.23177742,159.73,159.67,25.27236645]
[1721286227429,6.6664,159.73,159.68,1.25230154]
[1721286228853,6.6664,159.73,159.67,24.02]
[1721286230042,8.23169262,159.73,159.67,24.02]
[1721286231053,8.23169262,159.73,159.64,24.02]
[1721286231248,8.23169262,159.73,159.65,7.51969922]
[1721286231432,8.23169262,159.73,159.66,1.25243779]
[1721286231748,8.23169262,159.73,159.66,1.25243752]
[1721286231929,8.23169262,159.73,159.64,24.02]
[1721286232128,8.23169262,159.73,159.65,7.51970471]
[1721286232659,8.23169262,159.73,159.66,1.25250803]
[1721286233638,6.6664,159.73,159.67,24.02]
[1721286233843,8.23177211,159.73,159.68,1.25229769]
[1721286234237,8.23177211,159.73,159.67,24.02]
[1721286235950,8.23177211,159.73,159.64,24.02]
[1721286236152,8.23177211,159.73,159.65,7.51964666]
[1721286236335,8.23177211,159.73,159.66,1.25243515]
[1721286236742,6.6664,159.73,159.67,31.53964287]
[1721286236951,6.6664,159.73,159.7,24.02]
[1721286239844,6.6664,159.73,159.71,1.25210512]
[1721286240147,6.6664,159.73,159.7,24.02]
[1721286240353,6.6664,159.73,159.71,1.25205484]
[1721286240855,6.6664,159.73,159.7,24.02]
[1721286241851,6.6664,159.73,159.71,1.25210171]
[1721286242429,6.6664,159.73,159.7,24.02]
[1721286242854,6.6664,159.73,159.71,1.25209682]
[1721286243157,6.6664,159.73,159.7,24.02]
[1721286246671,6.6664,159.73,159.65,51.51709408]
[1721286246672,25.4364,159.73,159.67,24.02]
[1721286246960,25.4364,159.73,159.64,24.02]
[1721286247159,25.4364,159.73,159.65,8.77223521]
[1721286247339,6.6664,159.73,159.65,1.25251868]
[1721286247669,1.56557295,159.72,159.65,1.25251868]
[1721286247959,1.56557295,159.72,159.66,7.51980428]
[1721286248170,1.56557295,159.72,159.67,1.2524047]
[1721286248338,6.6664,159.73,159.71,12.05]
[1721286248536,6.6664,159.73,159.72,12.05]
[1721286252549,6.6664,159.73,159.64,16.48964968]
[1721286252750,6.6664,159.73,159.72,12.05]
[1721286253146,6.6664,159.73,159.71,12.05]
[1721286253345,1.56539091,159.72,159.7,12.05]
[1721286253545,1.56539091,159.72,159.69,12.05]
[1721286253861,1.56539091,159.72,159.7,12.05]
[1721286254163,1.56539091,159.72,159.64,6.48964968]
[1721286254164,16.4969,159.71,159.64,6.48964968]
[1721286254347,1.56576118,159.7,159.67,12.05]
[1721286254551,18.06263587,159.71,159.65,1.2525887]
[1721286254749,1.56555105,159.7,159.66,7.51974195]
[1721286254955,1.56555105,159.7,159.69,12.05]
[1721286255378,18.06247696,159.71,159.69,12.05]
[1721286255564,1.56555258,159.7,159.69,12.05]
[1721286256267,1.56555258,159.7,159.64,24.11]
[1721286256475,1.56555258,159.7,159.65,7.51985901]
[1721286257344,1.56555258,159.7,159.6,17.93090569]
[1721286257550,1.56555258,159.7,159.61,38.13298081]
[1721286257857,1.56555258,159.7,159.62,8.77290314]
[1721286258055,1.56555258,159.7,159.63,7.52065374]
[1721286258451,1.56555258,159.7,159.64,7.52065374]
[1721286258763,1.56555258,159.7,159.65,7.52065374]
[1721286258969,6.5318,159.69,159.61,30.61232707]
[1721286259156,1.56596068,159.68,159.62,7.52083144]
[1721286259355,1.56597809,159.67,159.62,7.52083144]
[1721286260241,6.5318,159.69,159.62,7.52083144]
[1721286260442,1.56603043,159.68,159.59,33.86256078]
[1721286260686,1.56603043,159.67,159.6,7.52159243]
[1721286261050,15.695,159.66,159.6,7.52159243]
[1721286261255,1.56622544,159.65,159.6,7.52159243]
[1721286261456,1.56623166,159.64,159.6,7.52159243]
[1721286262463,1.56622999,159.65,159.6,7.52159243]
[1721286262666,1.56622999,159.65,159.61,1.25296086]
[1721286262855,15.695,159.66,159.62,7.52151145]
[1721286263051,15.695,159.66,159.63,1.25277309]
[1721286263252,6.5318,159.69,159.64,7.52151145]
[1721286263454,8.09753,159.69,159.65,1.252584]
[1721286263953,8.09753,159.69,159.61,24.11]
[1721286264581,8.09753,159.69,159.62,7.52096704]
[1721286265273,8.09753,159.69,159.63,1.25258552]
[1721286265574,8.09753,159.69,159.59,39.50974947]
[1721286265773,8.09753,159.69,159.6,7.52157008]
[1721286267064,8.09753,159.69,159.61,1.25279058]
[1721286268257,8.09753,159.69,159.59,63.61974947]
[1721286268578,8.09753,159.69,159.6,7.52154857]
[1721286271956,8.09753,159.69,159.61,1.25278945]
[1721286272156,6.5318,159.69,159.62,41.6309027]
[1721286272381,6.5318,159.69,159.63,8.77323989]
[1721286272678,6.5318,159.69,159.63,1.252501]
[1721286272879,6.5318,159.69,159.65,24.11]
[1721286273065,6.5318,159.69,159.66,1.25237188]
[1721286273260,6.5318,159.69,159.65,24.11]
[1721286273862,6.5318,159.69,159.66,1.25238145]
[1721286274080,18.77,159.78,159.68,24.11]
[1721286274081,6.2965,159.73,159.68,24.11]
[1721286274284,6.2965,159.73,159.69,1.25223591]
[1721286274581,6.2965,159.73,159.68,24.11]
[1721286277881,6.2965,159.73,159.69,1.25215817]
[1721286278076,6.2965,159.73,159.71,24.11]
[1721286278386,16.6622,159.74,159.72,1.25204992]
[1721286278608,16.6622,159.74,159.71,24.11]
[1721286278883,16.6622,159.74,159.7,24.11]
[1721286279087,16.6622,159.74,159.71,1.25202742]
[1721286279782,6.5676,159.77,159.71,1.25202742]
[1721286279966,1.56502017,159.76,159.71,1.25202742]
[1721286280286,1.56502017,159.76,159.7,24.11]
[1721286280885,1.56502017,159.76,159.71,1.25201704]
[1721286281660,6.5676,159.77,159.71,1.25201704]
[1721286282085,6.5676,159.77,159.73,24.11]
[1721286282467,6.5676,159.77,159.74,1.2518476]
[1721286285210,8.13238305,159.77,159.71,1.25182644]
[1721286285497,1.56478305,159.76,159.71,24.11]
[1721286292294,1.56478305,159.76,159.68,48.2]
[1721286292478,46.56478305,159.76,159.72,12.05]
[1721286293693,65.33478305,159.76,159.65,7.34742937]
[1721286293894,0.17,159.75,159.72,12.05]
[1721286294100,1.56533852,159.75,159.72,12.05]
[1721286294272,1.56533852,159.75,159.66,24.11]
[1721286294468,1.56533852,159.75,159.67,1.25229943]
[1721286294682,1.56533852,159.75,159.68,1.25229927]
[1721286295279,1.56533852,159.75,159.66,24.11]
[1721286296807,1.56533852,159.75,159.69,24.11]
[1721286296974,1.56527238,159.76,159.69,24.11]
[1721286301190,1.56527238,159.76,159.64,12.15584482]
[1721286301191,18.77,159.74,159.64,30.61865613]
[1721286301383,46.73564997,159.73,159.64,30.61865613]
[1721286301583,46.73564997,159.73,159.64,24.11]
[1721286304515,6.3635,159.72,159.64,24.11]
[1721286304685,65.50590501,159.71,159.62,6.5085384]
[1721286305008,1.56595541,159.7,159.6,24.11]
[1721286305302,1.56595541,159.7,159.61,7.52083625]
[1721286305507,34.0526,159.68,159.59,40.36999067]
[1721286305711,65.50624396,159.67,159.59,40.36999067]
[1721286306009,46.73624396,159.67,159.59,33.86256078]
[1721286306305,65.50624396,159.67,159.59,33.86256078]
[1721286306803,65.50624396,159.67,159.59,35.11553606]
[1721286306983,46.73624396,159.67,159.59,35.11553606]
[1721286307178,1.56624396,159.67,159.59,35.11553606]
[1721286307400,1.56624396,159.67,159.59,33.86256078]
[1721286309799,1.56624396,159.67,159.61,24.11]
[1721286311083,1.56624396,159.67,159.61,25.36279445]
[1721286311783,1.56624396,159.67,159.61,24.11]
[1721286312281,1.56624396,159.67,159.59,33.86256078]
[1721286312486,1.56624396,159.67,159.59,57.97256078]
[1721286313079,1.56624396,159.67,159.59,59.2254376]
[1721286313902,15.2826,159.68,159.59,59.2254376]
[1721286314091,16.84840794,159.68,159.62,24.11]
[1721286314293,16.84840794,159.68,159.67,12.06]
[1721286315210,15.2826,159.68,159.67,12.06]
[1721286316414,15.2826,159.68,159.6,93.41]
[1721286316415,16.84830906,159.68,159.66,12.06]
[1721286316714,16.84830906,159.68,159.6,48.24]
[1721286316715,1.56595339,159.67,159.65,12.06]
[1721286317415,1.56595339,159.67,159.66,12.06]
[1721286318011,1.56595339,159.67,159.65,12.06]
[1721286318403,1.56595339,159.67,159.64,12.06]
[1721286319117,6.7944,159.66,159.62,12.06]
[1721286319290,1.56628167,159.65,159.62,12.06]
[1721286319491,1.5662701,159.64,159.62,12.06]
[1721286320117,1.5662701,159.64,159.63,12.06]
[1721286320512,1.56619104,159.65,159.63,12.06]
[1721286320712,1.56622056,159.64,159.63,12.06]
[1721286321098,8.19054193,159.66,159.63,12.06]
[1721286321293,8.19054193,159.66,159.6,13.31285063]
[1721286321607,8.19054193,159.66,159.65,12.06]
[1721286322215,6.6244,159.66,159.6,1.25285063]
[1721286322410,1.56608631,159.65,159.6,25.38285063]
[1721286324922,1.56608631,159.65,159.6,24.13]
[1721286329311,1.56608746,159.64,159.6,24.13]
[1721286329498,1.56608746,159.64,159.59,33.86256078]
[1721286330629,1.56631321,159.63,159.59,33.86256078]
[1721286330805,1.56631297,159.65,159.59,33.86256078]
[1721286331149,1.56631297,159.64,159.59,33.86256078]
[1721286332116,6.6244,159.66,159.59,33.86256078]
[1721286332314,1.56631249,159.65,159.59,33.86256078]
[1721286332504,1.56631249,159.64,159.59,33.86256078]
[1721286333521,6.6244,159.66,159.59,33.86256078]
[1721286333710,1.56630916,159.65,159.59,33.86256078]
[1721286334028,1.56631162,159.64,159.59,33.86256078]
[1721286334820,6.6244,159.66,159.59,33.86256078]
[1721286335025,1.56631106,159.65,159.59,33.86256078]
[1721286335228,1.56631059,159.64,159.59,33.86256078]
[1721286335936,15.5056,159.63,159.59,33.86256078]
[1721286336240,1.56653758,159.62,159.59,33.86256078]
[1721286339128,6.3593,159.61,159.59,33.86256078]
[1721286339428,36.88599991,159.6,159.59,17.19596078]
[1721286339647,82.05599991,159.6,159.59,17.19596078]
[1721286340308,82.05599991,159.6,159.51,0.8180857]
[1721286340309,94.74329991,159.6,159.52,12.829]
[1721286340512,0.17,159.59,159.52,12.829]
[1721286342433,1.73711079,159.59,159.52,12.829]
[1721286343734,0.95926057,159.53,159.52,12.829]
[1721286346242,0.95926057,159.53,159.52,24.909]
[1721286347216,0.95926057,159.53,159.52,12.829]
[1721286347527,0.95926057,159.53,159.52,24.909]
[1721286348034,0.95926057,159.53,159.52,12.829]
[1721286348932,0.95926057,159.53,159.52,8.29699718]
[1721286351312,16.67566057,159.53,159.52,8.29699718]
[1721286351512,47.57566057,159.53,159.52,8.29699718]
[1721286351741,92.74566057,159.53,159.52,8.29699718]
[1721286352328,92.74566057,159.53,159.51,0.8180857]
[1721286352520,46.73762456,159.52,159.51,0.8180857]
[1721286353436,77.63762456,159.52,159.51,0.8180857]
[1721286354331,78.59688513,159.52,159.51,0.8180857]
[1721286358340,59.77688513,159.52,159.51,0.8180857]
[1721286358657,78.59688513,159.52,159.51,0.8180857]
[1721286360349,78.59688513,159.52,159.48,83.91423575]
[1721286360350,40.1237,159.51,159.48,77.24763575]
[1721286360562,46.73788923,159.5,159.39,16.4883]
[1721286360861,1.56788923,159.5,159.47,12.08]
[1721286361244,13.64788923,159.5,159.45,12.08]
[1721286361636,13.64788923,159.5,159.4,12.15941862]
[1721286361956,0.95926057,159.48,159.46,12.08]
[1721286362129,1.56783916,159.47,159.4,12.15924219]
[1721286362332,1.56783916,159.47,159.44,12.08]
[1721286362566,1.56783916,159.47,159.45,12.08]
[1721286363350,20.38783916,159.47,159.4,5.64718869]
[1721286363662,0.95926057,159.45,159.42,12.08]
[1721286363849,0.95926057,159.45,159.41,12.08]
[1721286363850,1.56822483,159.44,159.41,12.08]
[1721286364274,13.64822483,159.44,159.4,12.08]
[1721286364767,0.95926057,159.43,159.4,12.08]
[1721286364967,1.56835554,159.42,159.4,12.08]
[1721286365749,1.56835554,159.42,159.41,12.08]
[1721286366064,32.46830963,159.42,159.35,0.8180857]
[1721286366360,12.08,159.4,159.35,12.8980857]
[1721286366675,1.56887641,159.39,159.35,12.8980857]
[1721286366847,1.56887641,159.39,159.36,12.08]
[1721286367359,1.56887641,159.39,159.35,0.8180857]
[1721286367561,1.56887641,159.39,159.36,12.08]
[1721286367743,1.56887641,159.39,159.37,12.08]
[1721286367945,1.56875719,159.38,159.37,12.08]
[1721286368271,1.56873831,159.4,159.36,12.08]
[1721286368470,0.9589478,159.38,159.35,0.8180857]
[1721286368775,1.56888373,159.37,159.35,12.8980857]
[1721286369935,0.9589478,159.38,159.36,25.41510052]
[1721286370254,0.9589478,159.38,159.37,12.08]
[1721286370968,1.5684726,159.42,159.37,12.08]
[1721286371171,1.5684726,159.42,159.4,12.08]
[1721286371469,1.56836496,159.44,159.4,12.08]
[1721286371666,1.56836496,159.44,159.41,12.08]
[1721286372162,1.56836496,159.44,159.42,12.08]
[1721286372371,1.56836496,159.44,159.37,24.2]
[1721286372952,25.2118,159.47,159.38,1.25464957]
[1721286373159,0.7719979,159.46,159.38,1.25464957]
[1721286373478,0.7719979,159.46,159.39,1.25446383]
[1721286373684,0.7719979,159.46,159.4,1.25444988]
[1721286376072,0.7719979,159.48,159.4,25.45444988]
[1721286376258,0.7719979,159.48,159.4,24.2]
[1721286376664,15.9014,159.49,159.43,24.2]
[1721286376665,0.7719979,159.49,159.43,24.2]
[1721286376899,0.7719979,159.49,159.44,1.25417974]
[1721286377387,0.7719979,159.5,159.44,1.25417974]
[1721286377675,0.7719979,159.5,159.45,77.21958341]
[1721286377875,0.7719979,159.5,159.46,1.2540997]
[1721286378188,0.7719979,159.5,159.45,78.47367818]
[1721286378479,0.7719979,159.5,159.46,77.21474084]
[1721286379384,39.8661,159.58,159.46,116.47984084]
[1721286379385,0.7719979,159.57,159.46,116.47984084]
[1721286379587,19.5919979,159.57,159.47,77.20989888]
[1721286379882,18.82,159.56,159.47,78.46372721]
[1721286380084,0.7719979,159.55,159.47,78.46372721]
[1721286380285,0.7719979,159.54,159.47,78.46372721]
[1721286380770,45.7719979,159.54,159.47,78.46372721]
[1721286380968,6.2705,159.48,159.35,267.3180857]
[1721286381173,0.7719979,159.47,159.36,24.2]
[1721286382681,0.7719979,159.47,159.37,45.17]
[1721286384257,0.7719979,159.47,159.35,0.8180857]
[1721286384559,0.17,159.46,159.35,0.8180857]
[1721286384770,0.7719979,159.45,159.35,0.8180857]
[1721286385686,0.7719979,159.46,159.37,24.2]
[1721286385889,0.7719979,159.46,159.38,1.25444168]
[1721286386198,6.2697,159.5,159.38,1.25444168]
[1721286386365,45.9419979,159.49,159.38,1.25444168]
[1721286386560,0.7719979,159.48,159.38,1.25444168]
[1721286387371,0.7719979,159.48,159.39,10.0]
[1721286387585,0.7719979,159.52,159.4,1.25427291]
[1721286387890,6.2696,159.5,159.4,1.25427291]
[1721286388088,0.7719979,159.49,159.4,1.25427291]
[1721286388301,0.7719979,159.48,159.4,1.25427291]
[1721286388496,0.7719979,159.48,159.37,34.2]
[1721286388803,0.7719979,159.48,159.38,45.0]
[1721286389683,25.8623979,159.48,159.37,24.2]
[1721286389891,7.2128979,159.47,159.35,0.8180857]
[1721286390094,7.2128979,159.47,159.36,7.53062438]
[1721286390469,7.2128979,159.47,159.35,0.8180857]
[1721286390789,0.9419979,159.47,159.36,7.53070038]
[1721286390986,45.9419979,159.47,159.35,10.8180857]
[1721286391284,0.7719979,159.47,159.37,34.2]
[1721286391468,0.7719979,159.49,159.39,10.0]
[1721286391664,7.0411979,159.51,159.4,1.25431948]
[1721286391890,7.0411979,159.51,159.37,34.2]
[1721286392105,25.8611979,159.51,159.38,52.86960828]
[1721286392276,25.8611979,159.51,159.38,45.34]
[1721286392794,51.2697,159.5,159.38,45.34]
[1721286392992,0.7719979,159.49,159.38,45.34]
[1721286393194,0.7719979,159.48,159.38,45.34]
[1721286393768,0.7719979,159.48,159.38,45.0]
[1721286394302,12.1,159.46,159.41,12.1]
[1721286394593,12.1,159.46,159.35,6.56429105]
[1721286394594,12.1,159.44,159.35,6.56429105]
[1721286394899,0.7719979,159.43,159.39,12.1]
[1721286396177,0.7719979,159.42,159.38,12.1]
[1721286397274,0.7719979,159.43,159.4,12.1]
[1721286397689,0.7719979,159.43,159.39,12.1]
[1721286398687,0.7719979,159.43,159.35,0.8180857]
[1721286398887,0.7719979,159.42,159.39,12.1]
[1721286399997,12.1,159.44,159.39,12.1]
[1721286399998,0.7719979,159.43,159.39,12.1]
[1721286401080,0.7719979,159.43,159.4,12.1]
[1721286401280,0.7719979,159.44,159.4,12.1]
[1721286401795,12.8719979,159.44,159.37,1.25462225]
[1721286402102,12.8719979,159.44,159.39,12.1]
[1721286402474,16.1152979,159.45,159.42,12.1]
[1721286402872,16.1152979,159.45,159.41,12.1]
[1721286408695,0.7719979,159.45,159.42,12.1]
[1721286408901,6.9199979,159.46,159.42,12.1]
[1721286409097,0.7719979,159.45,159.42,12.1]
[1721286409675,0.7719979,159.46,159.43,12.1]
[1721286409878,12.8719979,159.48,159.43,12.1]
[1721286410084,12.1,159.46,159.41,12.1]
[1721286410284,12.8719979,159.45,159.4,12.1]
[1721286411479,12.1,159.43,159.38,12.1]
[1721286411679,12.8719979,159.42,159.37,12.1]
[1721286411903,12.8719979,159.42,159.35,2.07296921]
[1721286412206,12.1,159.4,159.35,12.9180857]
[1721286412514,0.7719979,159.39,159.35,12.9180857]
[1721286412711,0.7719979,159.41,159.37,12.1]
[1721286414320,0.7719979,159.41,159.38,12.1]
[1721286414781,0.7719979,159.41,159.35,0.8180857]
[1721286414984,10.18374051,159.41,159.38,12.1]
[1721286415189,0.7719979,159.41,159.38,12.1]
[1721286419295,0.7719979,159.41,159.37,12.1]
[1721286419606,12.8719979,159.41,159.36,12.1]
[1721286419911,22.28382997,159.41,159.36,12.1]
[1721286420485,0.7719979,159.41,159.37,12.1]
[1721286420682,10.18382997,159.41,159.37,12.1]
[1721286421106,0.7719979,159.41,159.38,12.1]
[1721286421409,0.7719979,159.41,159.35,0.8180857]
[1721286421613,0.7719979,159.41,159.38,12.1]
[1721286422199,16.2066979,159.42,159.39,12.1]
[1721286422418,0.7719979,159.42,159.4,12.1]
[1721286422917,0.7719979,159.42,159.39,12.1]
[1721286423291,0.7719979,159.43,159.39,12.1]
[1721286423618,0.7719979,159.42,159.39,12.1]
[1721286423822,0.7719979,159.42,159.4,12.1]
[1721286424115,0.7719979,159.43,159.4,12.1]
[1721286424289,0.7719979,159.43,159.41,12.1]
[1721286424623,0.7719979,159.43,159.4,12.1]
[1721286425598,0.7719979,159.43,159.41,12.1]
[1721286425814,0.7719979,159.43,159.37,1.25470795]
[1721286426108,0.7719979,159.42,159.35,2.07277499]
[1721286426321,0.7719979,159.42,159.39,12.1]
[1721286427204,0.7719979,159.43,159.39,12.1]
[1721286427510,0.7719979,159.42,159.39,12.1]
[1721286428195,12.8719979,159.42,159.37,12.1]
[1721286429794,0.7719979,159.42,159.38,12.1]
[1721286430492,19.1447979,159.42,159.35,0.8180857]
[1721286430817,0.7719979,159.42,159.38,12.1]
[1721286431121,12.27,159.41,159.35,0.8180857]
[1721286431288,12.8719979,159.4,159.35,0.8180857]
[1721286431499,0.7719979,159.39,159.35,12.9180857]
[1721286431698,0.7719979,159.39,159.36,12.1]
[1721286432386,0.7719979,159.4,159.36,12.1]
[1721286432586,12.27,159.41,159.36,12.1]
[1721286432587,0.7719979,159.39,159.36,12.1]
[1721286433506,0.7719979,159.4,159.36,12.1]
[1721286433814,0.7719979,159.39,159.36,12.1]
[1721286434122,0.7719979,159.39,159.35,0.8180857]
[1721286434298,0.7719979,159.39,159.36,12.1]
[1721286434618,0.7719979,159.4,159.36,12.1]
[1721286434916,0.7719979,159.39,159.36,12.1]
[1721286436022,0.7719979,159.4,159.37,12.1]
[1721286436224,30.92,159.42,159.35,0.8180857]
[1721286436225,0.7719979,159.39,159.36,12.1]
[1721286437019,0.7719979,159.39,159.35,0.8180857]
[1721286437210,12.1,159.36,159.35,0.8180857]
[1721286437698,12.27,159.36,159.35,0.8180857]
[1721286440395,0.7719979,159.37,159.35,0.8180857]
[1721286440708,12.8719979,159.37,159.35,0.8180857]
[1721286446909,12.1,159.36,159.35,0.8180857]
[1721286447933,0.7719979,159.37,159.35,0.8180857]
[1721286448246,0.7719979,159.38,159.35,12.9180857]
[1721286448608,0.7719979,159.38,159.35,0.8180857]
[1721286449322,12.8719979,159.38,159.35,0.8180857]
[1721286449809,12.1,159.37,159.35,0.8180857]
[1721286450436,0.7719979,159.36,159.35,0.8180857]
[1721286452217,12.8719979,159.36,159.35,0.8180857]
[1721286452408,12.1,159.37,159.35,0.8180857]
[1721286452608,0.7719979,159.36,159.35,0.8180857]
[1721286453023,12.8719979,159.36,159.35,0.8180857]
[1721286453416,0.7719979,159.36,159.35,0.8180857]
[1721286454141,12.1,159.38,159.35,0.8180857]
[1721286454341,0.7719979,159.37,159.35,0.8180857]
[1721286456326,12.8719979,159.37,159.35,0.8180857]
[1721286456530,0.7719979,159.37,159.35,0.8180857]
[1721286464543,19.5919979,159.37,159.35,0.8180857]
[1721286464770,18.5451,159.36,159.35,0.8180857]
[1721286465432,12.27,159.36,159.35,0.8180857]
[1721286465634,0.17,159.36,159.35,0.8180857]
[1721286465842,12.27,159.36,159.35,0.8180857]
[1721286466938,12.1,159.36,159.35,0.8180857]
[1721286467331,12.27,159.36,159.35,0.8180857]
[1721286468145,12.1,159.36,159.35,0.8180857]
[1721286471561,12.27,159.36,159.35,0.8180857]
[1721286471727,18.5451,159.36,159.35,0.8180857]
[1721286472751,12.27,159.36,159.35,0.8180857]
[1721286473838,0.17,159.36,159.35,0.8180857]
[1721286474038,12.27,159.36,159.35,0.8180857]
[1721286475751,37.3651,159.36,159.35,0.8180857]
[1721286476057,82.3651,159.36,159.35,0.8180857]
[1721286478776,93.67771998,159.36,159.35,0.8180857]
[1721286479449,82.3651,159.36,159.35,0.8180857]
[1721286479671,0.7719979,159.37,159.35,0.8180857]
[1721286479963,12.1,159.36,159.35,0.8180857]
[1721286480938,12.27,159.36,159.35,0.8180857]
[1721286482059,12.8719979,159.37,159.35,0.8180857]
[1721286482266,28.23376742,159.39,159.35,0.8180857]
[1721286482267,0.7719979,159.36,159.35,0.8180857]
[1721286482450,0.7719979,159.38,159.35,0.8180857]
[1721286482634,12.8719979,159.38,159.35,0.8180857]
[1721286482836,6.2747,159.37,159.35,0.8180857]
[1721286483032,0.7719979,159.36,159.35,0.8180857]
[1721286484062,0.7719979,159.37,159.35,0.8180857]
[1721286487049,0.7719979,159.38,159.35,0.8180857]
[1721286488784,0.7719979,159.39,159.35,2.07317358]
[1721286489083,0.7719979,159.39,159.36,12.1]
[1721286489261,0.7719979,159.39,159.35,12.9180857]
[1721286491478,12.8719979,159.39,159.35,0.8180857]
[1721286491683,12.1,159.38,159.35,0.8180857]
[1721286491867,0.7719979,159.37,159.35,0.8180857]
[1721286494991,25.0938,159.4,159.35,0.8180857]
[1721286494992,12.8719979,159.38,159.35,0.8180857]
[1721286495285,12.1,159.37,159.35,0.8180857]
[1721286495492,0.7719979,159.36,159.35,0.8180857]
[1721286495794,12.8719979,159.36,159.35,0.8180857]
[1721286498079,13.0419979,159.36,159.35,0.8180857]
[1721286498477,31.8619979,159.36,159.35,0.8180857]
[1721286498681,76.09,159.36,159.35,0.8180857]
[1721286499199,76.8619979,159.36,159.35,0.8180857]
[1721286499993,83.1370979,159.36,159.35,0.8180857]
[1721286500461,82.3651,159.36,159.35,0.8180857]
[1721286500876,83.1370979,159.36,159.35,0.8180857]
[1721286502593,76.8619979,159.36,159.35,0.8180857]
[1721286503696,83.1370979,159.36,159.35,0.8180857]
[1721286507567,28.23961349,159.38,159.35,0.8180857]
[1721286507779,0.7719979,159.37,159.36,12.1]
[1721286508094,12.8719979,159.4,159.35,12.9180857]
[1721286508267,0.7719979,159.39,159.35,12.9180857]
[1721286509897,0.7719979,159.39,159.35,12.9180857]
[1721286510268,12.8719979,159.39,159.35,0.8180857]
[1721286510570,0.7719979,159.39,159.35,12.9180857]
[1721286510978,0.7719979,159.39,159.36,12.1]
[1721286511185,0.7719979,159.39,159.37,12.1]
[1721286511366,0.7719979,159.4,159.37,12.1]
[1721286511567,0.7719979,159.39,159.36,12.1]
[1721286511779,0.7719979,159.39,159.35,0.8180857]
[1721286511982,0.7719979,159.39,159.35,12.9180857]
[1721286512998,0.7719979,159.39,159.36,12.1]
[1721286513181,9.41678349,159.43,159.35,0.8180857]
[1721286513182,0.7719979,159.4,159.35,0.8180857]
[1721286513379,0.7719979,159.39,159.37,12.1]
[1721286513699,0.7719979,159.39,159.36,12.1]
[1721286514279,12.1,159.41,159.36,12.1]
[1721286514280,0.7719979,159.4,159.36,12.1]
[1721286514482,0.7719979,159.39,159.36,12.1]
[1721286515504,0.7719979,159.4,159.36,12.1]
[1721286515805,0.7719979,159.39,159.36,12.1]
[1721286516678,0.7719979,159.4,159.36,12.1]
[1721286516878,0.7719979,159.39,159.36,12.1]
[1721286517573,0.7719979,159.39,159.37,77.30095343]
[1721286517776,12.8719979,159.39,159.37,77.30095343]
[1721286517997,0.7719979,159.38,159.37,77.30095343]
[1721286518201,12.1,159.39,159.37,77.30095343]
[1721286518387,25.0932,159.41,159.36,76.53370936]
[1721286518589,31.09,159.4,159.36,76.53370936]
[1721286519195,12.1,159.39,159.36,76.53370936]
[1721286519500,18.99,159.4,159.36,76.53370936]
[1721286519704,0.17,159.4,159.37,64.42738861]
[1721286520010,9.41683202,159.46,159.39,12.1]
[1721286520186,21.51683202,159.46,159.41,12.1]
[1721286520892,21.51683202,159.46,159.37,65.68234889]
[1721286520893,30.92,159.45,159.4,12.1]
[1721286521265,12.1,159.44,159.39,12.1]
[1721286523393,18.82,159.46,159.38,1.25476997]
[1721286523588,18.82,159.46,159.42,12.1]
[1721286524100,40.33495121,159.49,159.44,12.1]
[1721286524299,30.92,159.49,159.44,12.1]
[1721286525685,0.17,159.48,159.44,12.1]
[1721286527403,31.09,159.48,159.43,12.1]
[1721286528989,12.1,159.46,159.41,12.1]
[1721286532321,0.17,159.48,159.4,16.0558]
[1721286532496,30.92,159.47,159.42,12.1]
[1721286533302,18.82,159.47,159.42,12.1]
[1721286533908,30.92,159.47,159.42,12.1]
[1721286535328,45.17,159.49,159.41,1.2545613]
[1721286535497,0.17,159.49,159.45,12.1]
[1721286536334,43.3465,159.52,159.47,12.1]
[1721286536516,37.0777,159.52,159.47,12.1]
[1721286537322,18.82,159.52,159.48,12.1]
[1721286537503,12.1,159.52,159.41,1.2545613]
[1721286537709,12.1,159.52,159.47,12.1]